Workbook

Sheet BP
A3: DESCRIÇÃO | B3: jan/15 | C3: fev/15 | D3: mar/15 | E3: abr/15
A5: DISPONIBILIDADES | B5: 1000 | C5: 3000 | D5: 500 | E5: 1500
A6: CONTAS A RECEBER | B6: =B5*22.5% -> 225 | C6: =C5*22.5% -> 675 | D6: =D5*22.5% -> 112.5 | E6: =E5*22.5% -> 337.5
A7: IMPOSTOS A RECUPERAR | B7: =B5*2 -> 2000 | C7: =C5*2 -> 6000 | D7: =D5*2 -> 1000 | E7: =E5*2 -> 3000
A8: ESTOQUES DE MANUTENÇÃO | B8: =B7*22.5% -> 450 | C8: =C7*22.5% -> 1350 | D8: =D7*22.5% -> 225 | E8: =E7*22.5% -> 675
A9: DESPESAS A APROPRIAR | B9: =B7*2 -> 4000 | C9: =C7*2 -> 12000 | D9: =D7*2 -> 2000 | E9: =E7*2 -> 6000
A10: CIRCULANTE | B10: =SUM(B5:B9) -> 7675 | C10: =SUM(C5:C9) -> 23025 | D10: =SUM(D5:D9) -> 3837.5 | E10: =SUM(E5:E9) -> 11512.5

Sheet DISPONIBILIDADES
A2: DESCRIÇÃO | B2: jan/15 | C2: fev/15 | D2: mar/15 | E2: abr/15
A3: Banco Bradesco | B3: 50 | C3: =B3*3 -> 150 | D3: =C3/6 -> 25 | E3: =D3*3 -> 75
A4: Banco Itaú | B4: 550 | C4: =B4*3 -> 1650 | D4: =C4/6 -> 275 | E4: =D4*3 -> 825
A5: Banco BB | B5: 250 | C5: 750 | D5: =C5/6 -> 125 | E5: 375
A6: Banco Santander | B6: 150 | C6: 450 | D6: =C6/6 -> 75 | E6: 225
A7: DISPONIBILIDADES | B7: =SUM(B3:B6) -> 1000 | C7: 3000 | D7: 500 | E7: 1500
